{"text_format":"1","workbook":"xlsx","n_sheets":2,"sheets":["Vendor Listing","Resources and References"],"not_rendered":{"charts":0,"images":3,"macros":1,"external_links":0,"defined_names":1,"comments":1,"pivot_tables":0},"unopened":[],"bounds":{"document_bytes":16777216,"sheet_cells":100000,"rows_first":2000,"rows_last":500,"rows_between":2000,"halvings":0,"cell_chars":16384,"cell_head_chars":4096},"cells_cut":0,"cells_raw":0,"read":"whole","date_system":"1900"}

{"sheet":"Vendor Listing","index":0,"n_rows":314,"n_cols":15,"rows_kept":314,"cut":false,"hidden":false,"merged":[[126,14,128,14],[164,6,169,6],[123,8,125,8],[133,11,136,11],[164,7,169,7],[164,10,169,10],[164,11,169,11],[164,8,169,8],[126,10,128,10],[137,11,138,11],[137,14,138,14],[137,6,138,6],[139,10,142,10],[139,11,142,11],[13,14,42,14],[282,6,285,6],[282,7,285,7],[282,8,285,8],[282,10,285,10],[282,11,285,11],[282,14,285,14],[69,8,71,8],[154,6,163,6],[154,7,163,7],[154,8,163,8],[154,10,163,10],[154,11,163,11],[154,14,163,14],[139,6,142,6],[82,14,83,14],[133,14,136,14],[274,6,275,6],[274,7,275,7],[274,8,275,8],[274,10,275,10],[274,11,275,11],[274,14,275,14],[10,6,10,14],[11,10,11,11],[214,8,232,8],[214,10,232,10],[214,11,232,11],[214,14,232,14],[268,6,269,6],[268,7,269,7],[268,8,269,8],[268,10,269,10],[268,11,269,11],[268,14,269,14],[236,14,249,14],[214,6,232,6],[214,7,232,7],[108,7,117,7],[108,6,117,6],[108,8,117,8],[171,6,202,6],[171,7,202,7],[211,8,213,8],[211,10,213,10],[211,11,213,11],[171,8,202,8],[146,8,151,8],[164,14,169,14],[139,14,142,14],[257,6,259,6],[257,7,259,7],[257,8,259,8],[257,10,259,10],[257,11,259,11],[257,14,259,14],[252,6,256,6],[252,7,256,7],[252,14,256,14],[236,6,249,6],[236,7,249,7],[236,8,249,8],[236,10,249,10],[236,11,249,11],[252,8,256,8],[252,10,256,10],[252,11,256,11],[211,14,213,14],[171,10,202,10],[309,14,312,14],[287,14,294,14],[287,6,294,6],[287,7,294,7],[287,8,294,8],[287,10,294,10],[287,11,294,11],[296,6,297,6],[309,6,312,6],[309,7,312,7],[309,8,312,8],[309,10,312,10],[309,11,312,11],[271,14,273,14],[250,6,251,6],[250,7,251,7],[250,8,251,8],[250,10,251,10],[250,11,251,11],[250,14,251,14],[296,14,297,14],[298,6,308,6],[298,7,308,7],[298,8,308,8],[298,10,308,10],[298,11,308,11],[298,14,308,14],[277,6,280,6],[277,7,280,7],[277,8,280,8],[277,10,280,10],[277,11,280,11],[277,14,280,14],[88,6,89,6],[88,7,89,7],[91,6,93,6],[91,7,93,7],[91,8,93,8],[91,10,93,10],[91,11,93,11],[88,11,89,11],[296,7,297,7],[296,8,297,8],[296,10,297,10],[296,11,297,11],[99,6,107,6],[99,7,107,7],[99,8,107,8],[99,10,107,10],[99,11,107,11],[271,6,273,6],[271,7,273,7],[271,8,273,8],[271,10,273,10],[271,11,273,11],[139,7,142,7],[139,8,142,8],[88,8,89,8],[88,10,89,10],[44,10,53,10],[44,11,53,11],[79,7,81,7],[79,8,81,8],[79,10,81,10],[82,10,83,10],[69,11,71,11],[69,10,71,10],[54,11,63,11],[86,8,87,8],[82,7,83,7],[82,8,83,8],[64,7,67,7],[64,8,67,8],[64,10,67,10],[64,11,67,11],[69,7,71,7],[69,6,71,6],[69,14,71,14],[86,6,87,6],[86,7,87,7],[86,11,87,11],[82,6,83,6],[79,6,81,6],[0,7,0,14],[2,3,2,14],[3,4,3,14],[4,4,4,14],[6,4,6,14],[8,4,8,14],[73,6,77,6],[73,8,77,8],[73,10,77,10],[73,11,77,11],[73,14,77,14],[64,14,67,14],[44,6,53,6],[44,7,53,7],[44,8,53,8],[44,14,53,14],[73,7,77,7],[13,6,42,6],[13,7,42,7],[13,8,42,8],[54,6,63,6],[54,7,63,7],[54,8,63,8],[54,10,63,10],[211,6,213,6],[211,7,213,7],[94,6,98,6],[94,7,98,7],[94,8,98,8],[94,10,98,10],[94,11,98,11],[204,7,208,7],[204,8,208,8],[204,10,208,10],[204,11,208,11],[118,7,119,7],[118,6,119,6],[118,8,119,8],[118,10,119,10],[118,11,119,11],[130,6,132,6],[130,7,132,7],[108,10,117,10],[108,11,117,11],[123,10,125,10],[123,11,125,11],[171,11,202,11],[204,6,208,6],[5,4,5,14],[123,6,125,6],[123,7,125,7],[133,6,136,6],[133,7,136,7],[133,8,136,8],[133,10,136,10],[79,14,81,14],[82,11,83,11],[13,10,42,10],[13,11,42,11],[79,11,81,11],[86,14,87,14],[108,14,117,14],[123,14,125,14],[118,14,119,14],[94,14,98,14],[86,10,87,10],[88,14,89,14],[99,14,107,14],[91,14,93,14],[54,14,63,14],[64,6,67,6],[204,14,208,14],[143,14,144,14],[130,14,132,14],[126,8,128,8],[143,11,144,11],[130,11,132,11],[146,6,151,6],[126,11,128,11],[146,7,151,7],[130,8,132,8],[130,10,132,10],[126,6,128,6],[126,7,128,7],[137,7,138,7],[137,8,138,8],[137,10,138,10],[171,14,202,14],[146,10,151,10],[146,11,151,11],[146,14,151,14],[143,6,144,6],[143,7,144,7],[143,8,144,8],[143,10,144,10]]}
[]
[]
[]
[null,null,null,null,"About this Portfolio"]
[null,null,null,null,"The Telehealth Technology Vendor Portfolio (portfolio) is intended to assist health care practices (practices) with assessing telehealth technology and the vendor providing the service.  The portfolio was developed with input from stakeholders and includes information publicly available on vendor websites. "]
[null,null,null,null,"Federal Notice"]
[null,null,null,null,"The United States Department of Health and Human Services, Office for Civil Rights1 is temporarily exercising enforcement discretion and waiving potential penalties for HIPAA violations2 against health care providers when provisioning telehealth in good faith.3   For the remainder of the federal public health emergency, use of “non-public facing” communications technologies is permitted (e.g., Apple FaceTime, Facebook Messenger, Google Hangouts).4, 5"]
[null,null,null,null,"Practice Guidance"]
[null,null,null,null,"Users can filter and sort the vendor list by category and hover over column headings to view category descriptions.  Practices are encouraged to complete a usability assessment6  on how well the technology supports clinical staff in providing safe, effective, and efficient care before finalizing their selection."]
[]
[null,null,null,null,null,null,"Vendor Listing\nHover over headings denoted with a \"i\" for more information about the topic."]
[null,null,null,null,null,null,null,{"$f":"\"Record Count: \"&SUBTOTAL(3,H14:H314)","v":"Record Count: 77"},"User Rating",null,"Technology Features",null,null,"EHR"]
[null,null,null,null,null,null,"#","HIPAA Complianti","Overall i\n1 (low) - 5 (high)",null,"Asynchronousi","Peripheral Device Compatible i",null,"Existing Integrationsi","Website"]
[null,null,null,null,null,null,{"$f":"SUBTOTAL(3, $H$14:H14)","v":1},"Accuhealth",5,null,"✔","✔",null,"ADS","www.accuhealth.tech/"]
[null,null,null,null,null,null,null,null,null,null,null,null,null,"Advanced MD"]
[null,null,null,null,null,null,null,null,null,null,null,null,null,"Allscripts"]
[null,null,null,null,null,null,null,null,null,null,null,null,null,"Amazing Charts"]
[null,null,null,null,null,null,null,null,null,null,null,null,null,"Aprima"]
[null,null,null,null,null,null,null,null,null,null,null,null,null,"athenahealth"]
[null,null,null,null,null,null,null,null,null,null,null,null,null,"CareCloud"]
[null,null,null,null,null,null,null,null,null,null,null,null,null,"Care Tracker"]
[null,null,null,null,null,null,null,null,null,null,null,null,null,"Centricity"]
[null,null,null,null,null,null,null,null,null,null,null,null,null,"CureMD"]
[null,null,null,null,null,null,null,null,null,null,null,null,null,"drchrono"]
[null,null,null,null,null,null,null,null,null,null,null,null,null,"eClinicalWorks"]
[null,null,null,null,null,null,null,null,null,null,null,null,null,"eMDs"]
[null,null,null,null,null,null,null,null,null,null,null,null,null,"Epic"]
[null,null,null,null,null,null,null,null,null,null,null,null,null,"Greenway"]
[null,null,null,null,null,null,null,null,null,null,null,null,null,"Kareo"]
[null,null,null,null,null,null,null,null,null,null,null,null,null,"Medical Mastermind"]
[null,null,null,null,null,null,null,null,null,null,null,null,null,"Medinformatix"]
[null,null,null,null,null,null,null,null,null,null,null,null,null,"Meditech"]
[null,null,null,null,null,null,null,null,null,null,null,null,null,"Meditouch"]
[null,null,null,null,null,null,null,null,null,null,null,null,null,"MicroMD"]
[null,null,null,null,null,null,null,null,null,null,null,null,null,"Nextech"]
[null,null,null,null,null,null,null,null,null,null,null,null,null,"NextGen"]
[null,null,null,null,null,null,null,null,null,null,null,null,null,"NueMD"]
[null,null,null,null,null,null,null,null,null,null,null,null,null,"Practice Fusion"]
[null,null,null,null,null,null,null,null,null,null,null,null,null,"Practice Perfect"]
[null,null,null,null,null,null,null,null,null,null,null,null,null,"SuccessEHS"]
[null,null,null,null,null,null,null,null,null,null,null,null,null,"Systemdx"]
[null,null,null,null,null,null,null,null,null,null,null,null,null,"WebeDoctor"]
[null,null,null,null,null,null,null,null,null,null,null,null,null,"Waiting Room Solutions"]
[null,null,null,null,null,null,{"$f":"SUBTOTAL(3, $H$14:H44)","v":2},"Amazon/Chime",3.1,null,"  ","✔",null,"None","aws.amazon.com/chime"]
[null,null,null,null,null,null,{"$f":"SUBTOTAL(3, $H$14:H54)","v":3},"AMD Global Telemedicine",5,null,"✔","✔",null,"Allscripts","amdtelemedicine.com/"]
[null,null,null,null,null,null,null,null,null,null,null,null,null,"athenahealth"]
[null,null,null,null,null,null,null,null,null,null,null,null,null,"Cerner"]
[null,null,null,null,null,null,null,null,null,null,null,null,null,"eClinicalWorks"]
[null,null,null,null,null,null,null,null,null,null,null,null,null,"E-MD"]
[null,null,null,null,null,null,null,null,null,null,null,null,null,"Epic"]
[null,null,null,null,null,null,null,null,null,null,null,null,null,"Greenway"]
[null,null,null,null,null,null,null,null,null,null,null,null,null,"Meditech"]
[null,null,null,null,null,null,null,null,null,null,null,null,null,"NextGen"]
[null,null,null,null,null,null,null,null,null,null,null,null,null,"PointClickCare"]
[null,null,null,null,null,null,{"$f":"SUBTOTAL(3, $H$14:H64)","v":4},"Amwell",4.4000000000000004,null,"  ","✔",null,"Allscripts","business.amwell.com/"]
[null,null,null,null,null,null,null,null,null,null,null,null,null,"athenahealth"]
[null,null,null,null,null,null,null,null,null,null,null,null,null,"Cerner"]
[null,null,null,null,null,null,null,null,null,null,null,null,null,"eClinicalWorks"]
[null,null,null,null,null,null,null,null,null,null,null,null,null,"Epic"]
[null,null,null,null,null,null,null,null,null,null,null,null,null,"IDX"]
[null,null,null,null,null,null,null,null,null,null,null,null,null,"Horizon"]
[null,null,null,null,null,null,null,null,null,null,null,null,null,"Meditech"]
[null,null,null,null,null,null,null,null,null,null,null,null,null,"Netsmart"]
[null,null,null,null,null,null,null,null,null,null,null,null,null,"TriMed"]
[null,null,null,null,null,null,{"$f":"SUBTOTAL(3, $H$14:H68)","v":5},"BlueStream",4.0999999999999996,null,"✔  ","✔",null,"Allscripts","www.bluestreamhealth.com/"]
[null,null,null,null,null,null,null,null,null,null,null,null,null,"athenahealth"]
[null,null,null,null,null,null,null,null,null,null,null,null,null,"Cerner"]
[null,null,null,null,null,null,null,null,null,null,null,null,null,"Epic"]
[null,null,null,null,null,null,{"$f":"SUBTOTAL(3, $H$14:H69)","v":6},"CareClix/Online Medical Suite",4.3,null,"✔","✔",null,"-","careclix.com/"]
[null,null,null,null,null,null,{"$f":"SUBTOTAL(3, $H$14:H72)","v":7},"Caregility",4.9000000000000004,null,"✔","✔",null,"athenahealth","caregility.com/"]
[null,null,null,null,null,null,null,null,null,null,null,null,null,"Epic"]
[null,null,null,null,null,null,null,null,null,null,null,null,null,"PointClickCare"]
[null,null,null,null,null,null,{"$f":"SUBTOTAL(3, $H$14:H73)","v":8},"ChARM Telehealth",4.3,null,"✔","✔",null,"ChARM EHR","www.charmhealth.com/telehealth/"]
[null,null,null,null,null,null,{"$f":"SUBTOTAL(3, $H$14:H78)","v":9},"Chiron Health",3.8,null,"  ","  ",null,"athenahealth","chironhealth.com/"]
[null,null,null,null,null,null,null,null,null,null,null,null,null,"CareCloud"]
[null,null,null,null,null,null,null,null,null,null,null,null,null,"Greenway"]
[null,null,null,null,null,null,null,null,null,null,null,null,null,"drchrono"]
[null,null,null,null,null,null,null,null,null,null,null,null,null,"kareo"]
[null,null,null,null,null,null,{"$f":"SUBTOTAL(3, $H$14:H79)","v":10},"Cisco Webex Meetings/Webex Teams",4.4000000000000004,null,"  ","  ",null,"Epic","www.cisco.com/c/en/us/solutions/industries/healthcare.html"]
[null,null,null,null,null,null,{"$f":"SUBTOTAL(3, $H$14:H82)","v":11},"Cloud DX/Connected Health",5,null,"✔","✔",null,"athenahealth","www.clouddx.com/#/healthkittelemedicine"]
[null,null,null,null,null,null,null,null,null,null,null,null,null,"Epic"]
[null,null,null,null,null,null,null,null,null,null,null,null,null,"Greenway"]
[null,null,null,null,null,null,{"$f":"SUBTOTAL(3, $H$14:H84)","v":12},"Cloudbreak","-",null,"  ","  ",null,"Cerner","www.cloudbreak.us/"]
[null,null,null,null,null,null,null,null,null,null,null,null,null,"Epic"]
[null,null,null,null,null,null,{"$f":"SUBTOTAL(3, $H$14:H85)","v":13},"Coachcare",3.3,null,"✔","✔",null,"-","www.coachcare.com/"]
[null,null,null,null,null,null,{"$f":"SUBTOTAL(3, $H$14:H86)","v":14},"CureCompanion",5,null,"✔","✔",null,"PointClickCare","curecompanion.com/"]
[null,null,null,null,null,null,{"$f":"SUBTOTAL(3, $H$14:H88)","v":15},"Dictum Health","-",null,"✔","✔",null,"EproSystem","www.dictumhealth.com/"]
[null,null,null,null,null,null,null,null,null,null,null,null,null,"PointClickCare"]
[null,null,null,null,null,null,{"$f":"SUBTOTAL(3, $H$14:H90)","v":16},"DocResponse, Inc.",5,null,null,null,null,"Allscripts","www.docresponse.com/features/telehealth/"]
[null,null,null,null,null,null,null,null,null,null,null,null,null,"athenahealth"]
[null,null,null,null,null,null,{"$f":"SUBTOTAL(3, $H$14:H91)","v":17},"Doxy.me",4.5,null,"  ","  ",null,"None","doxy.me/"]
[null,null,null,null,null,null,{"$f":"SUBTOTAL(3, $H$14:H94)","v":18},"DrFirst/Backline",4,null,"  ","  ",null,"Amazing Charts","drfirst.com/solutions/care-coordination-collaboration/"]
[null,null,null,null,null,null,null,null,null,null,null,null,null,"Greenway"]
[null,null,null,null,null,null,null,null,null,null,null,null,null,"Office Practicum"]
[null,null,null,null,null,null,{"$f":"SUBTOTAL(3, $H$14:H99)","v":19},"Epion Health",4.9000000000000004,null,null,null,null,"athenahealth","epionhealth.com/patient-engagement-software/telehealth-software/"]
[null,null,null,null,null,null,null,null,null,null,null,null,null,"Advanced MD"]
[null,null,null,null,null,null,null,null,null,null,null,null,null,"Allscripts"]
[null,null,null,null,null,null,null,null,null,null,null,null,null,"Cerner"]
[null,null,null,null,null,null,null,null,null,null,null,null,null,"NextGen"]
[null,null,null,null,null,null,{"$f":"SUBTOTAL(3, $H$14:H108)","v":20},"eVisit",4.0999999999999996,null,"  ","  ",null,"Allscripts","evisit.com/"]
[null,null,null,null,null,null,null,null,null,null,null,null,null,"Aprima"]
[null,null,null,null,null,null,null,null,null,null,null,null,null,"athenahealth"]
[null,null,null,null,null,null,null,null,null,null,null,null,null,"Cerner"]
[null,null,null,null,null,null,null,null,null,null,null,null,null,"eClinicalWorks"]
[null,null,null,null,null,null,null,null,null,null,null,null,null,"Epic"]
[null,null,null,null,null,null,null,null,null,null,null,null,null,"GE Healthcare"]
[null,null,null,null,null,null,null,null,null,null,null,null,null,"NextGen"]
[null,null,null,null,null,null,null,null,null,null,null,null,null,"Practice Fusion"]
[null,null,null,null,null,null,{"$f":"SUBTOTAL(3, $H$14:H118)","v":21},"ExamMed",4.2,null,"✔",null,null,"Advanced MD","www.exammed.com/"]
[null,null,null,null,null,null,null,null,null,null,null,null,null,"Allscripts"]
[null,null,null,null,null,null,null,null,null,null,null,null,null,"athenahealth"]
[null,null,null,null,null,null,null,null,null,null,null,null,null,"CareCloud"]
[null,null,null,null,null,null,null,null,null,null,null,null,null,"Cerner"]
[null,null,null,null,null,null,null,null,null,null,null,null,null,"eClinicalWorks"]
[null,null,null,null,null,null,null,null,null,null,null,null,null,"Epic"]
[null,null,null,null,null,null,null,null,null,null,null,null,null,"GEHRIMED"]
[null,null,null,null,null,null,null,null,null,null,null,null,null,"Greenway"]
[null,null,null,null,null,null,null,null,null,null,null,null,null,"NextGen"]
[null,null,null,null,null,null,{"$f":"SUBTOTAL(3, $H$14:H120)","v":22},"Extended Care",2.7,null,null,"✔",null,"Allscripts","www.extcare.com/telehealth/"]
[null,null,null,null,null,null,null,null,null,null,null,null,null,"Epic"]
[null,null,null,null,null,null,{"$f":"SUBTOTAL(3, $H$14:H121)","v":23},"FollowMyHealth",4.8,null,null,null,null,"Allscripts","about.followmyhealth.com/patient-engagement-platform/"]
[null,null,null,null,null,null,{"$f":"SUBTOTAL(3, $H$14:H122)","v":24},"Google/GSuite Hangouts Meet",4.5,null,"  ","  ",null,"None","workspace.google.com/products/meet/"]
[null,null,null,null,null,null,{"$f":"SUBTOTAL(3, $H$14:H123)","v":25},"GoToMeeting for Healthcare",4.4000000000000004,null,"  ","  ",null,"None","www.goto.com/healthcare"]
[null,null,null,null,null,null,{"$f":"SUBTOTAL(3, $H$14:H126)","v":26},"GlobalMed",4,null,"  ","✔",null,"Allscripts","www.globalmed.com/solutions/"]
[null,null,null,null,null,null,null,null,null,null,null,null,null,"Cerner"]
[null,null,null,null,null,null,null,null,null,null,null,null,null,"Epic"]
[null,null,null,null,null,null,{"$f":"SUBTOTAL(3, $H$14:H129)","v":27},"Hale Health",5,null,"✔","✔",null,"Allscripts","www.hale.co/"]
[null,null,null,null,null,null,null,null,null,null,null,null,null,"athenahealth"]
[null,null,null,null,null,null,null,null,null,null,null,null,null,"Epic"]
[null,null,null,null,null,null,{"$f":"SUBTOTAL(3, $H$14:H130)","v":28},"healow (eCW)",3.3,null,"  ","✔",null,"eClinicalWorks","www.eclinicalworks.com/products-services/patient-engagement/televisits/"]
[null,null,null,null,null,null,{"$f":"SUBTOTAL(3, $H$14:H133)","v":29},"HealthChat",5,null,null,null,null,"athenahealth","www.healthchatpro.com/"]
[null,null,null,null,null,null,null,null,null,null,null,null,null,"Cerner"]
[null,null,null,null,null,null,null,null,null,null,null,null,null,"Epic"]
[null,null,null,null,null,null,{"$f":"SUBTOTAL(3, $H$14:H137)","v":30},"Health Recovery Solutions",4.0999999999999996,null,"✔","✔",null,"Brighttree Matrixcare","www.healthrecoverysolutions.com/"]
[null,null,null,null,null,null,null,null,null,null,null,null,null,"Epic"]
[null,null,null,null,null,null,null,null,null,null,null,null,null,"Homecare Homebase"]
[null,null,null,null,null,null,null,null,null,null,null,null,null,"McKesson/MedSmart"]
[null,null,null,null,null,null,{"$f":"SUBTOTAL(3, $H$14:H139)","v":31},"HNC Virtual Solutions","-",null,"✔","✔",null,"Cerner","hncvirtualsolutions.com/"]
[null,null,null,null,null,null,null,null,null,null,null,null,null,"PointClickCare"]
[null,null,null,null,null,null,{"$f":"SUBTOTAL(3, $H$14:H143)","v":32},"HoyHealth (HoyDOC)","-",null,"✔","✔",null,"Cerner","www.hoyhealth.com/"]
[null,null,null,null,null,null,null,null,null,null,null,null,null,"eClinicalWorks"]
[null,null,null,null,null,null,null,null,null,null,null,null,null,"Epic"]
[null,null,null,null,null,null,null,null,null,null,null,null,null,"Prognocis"]
[null,null,null,null,null,null,{"$f":"SUBTOTAL(3, $H$14:H145)","v":33},"IM Your Doc",4.0999999999999996,null,null,null,null,"Greenway","www.imyourdoc.com/"]
[null,null,null,null,null,null,null,null,null,null,null,null,null,"Virience Health"]
[null,null,null,null,null,null,{"$f":"SUBTOTAL(3, $H$14:H146)","v":34},"Iron Bow Healthcare Solutions","-",null,"✔","✔",null,"None","ironbowhealthcare.com/"]
[null,null,null,null,null,null,{"$f":"SUBTOTAL(3, $H$14:H152)","v":35},"InTouch Health/Solo",4.8,null,"  ","✔",null,"Allscripts","intouchhealth.com/"]
[null,null,null,null,null,null,null,null,null,null,null,null,null,"athenahealth"]
[null,null,null,null,null,null,null,null,null,null,null,null,null,"Cerner"]
[null,null,null,null,null,null,null,null,null,null,null,null,null,"Epic"]
[null,null,null,null,null,null,null,null,null,null,null,null,null,"Meditech"]
[null,null,null,null,null,null,null,null,null,null,null,null,null,"NextGen"]
[null,null,null,null,null,null,{"$f":"SUBTOTAL(3, $H$14:H153)","v":36},"iUGO CARE","-",null,"✔","✔",null,"-","iugohealth.com/"]
[null,null,null,null,null,null,{"$f":"SUBTOTAL(3, $H$14:H154)","v":37},"IVCi",4.8,null,"  ","✔",null,"-","ivci.com/industries/healthcare/"]
[null,null,null,null,null,null,{"$f":"SUBTOTAL(3, $H$14:H164)","v":38},"Klara","-",null,null,null,null,"Advanced MD","www.klara.com/telemedicine"]
[null,null,null,null,null,null,null,null,null,null,null,null,null,"athenahealth"]
[null,null,null,null,null,null,null,null,null,null,null,null,null,"Allscripts"]
[null,null,null,null,null,null,null,null,null,null,null,null,null,"Cerner"]
[null,null,null,null,null,null,null,null,null,null,null,null,null,"drchrono"]
[null,null,null,null,null,null,null,null,null,null,null,null,null,"Epic"]
[null,null,null,null,null,null,null,null,null,null,null,null,null,"Modernizing Medicine"]
[null,null,null,null,null,null,null,null,null,null,null,null,null,"Nextgen"]
[null,null,null,null,null,null,null,null,null,null,null,null,null,"Nextech"]
[null,null,null,null,null,null,null,null,null,null,null,null,null,"Practice Fusion"]
[null,null,null,null,null,null,{"$f":"SUBTOTAL(3, $H$14:H170)","v":39},"Keona Health",5,null,null,null,null,"Advanced MD","www.keonahealth.com/telemedicine"]
[null,null,null,null,null,null,null,null,null,null,null,null,null,"Allscripts"]
[null,null,null,null,null,null,null,null,null,null,null,null,null,"athenahealth"]
[null,null,null,null,null,null,null,null,null,null,null,null,null,"Cerner"]
[null,null,null,null,null,null,null,null,null,null,null,null,null,"Epic"]
[null,null,null,null,null,null,null,null,null,null,null,null,null,"GE Healthcare"]
[null,null,null,null,null,null,{"$f":"SUBTOTAL(3, $H$14:H171)","v":40},"Logicalis",4.7,null,"✔","  ",null,"-","www.us.logicalis.com/healthcare"]
[null,null,null,null,null,null,{"$f":"SUBTOTAL(3, $H$14:H203)","v":41},"Luma Health",4.7,null,"✔",null,null,"ADS","www.lumahealth.io/"]
[null,null,null,null,null,null,null,null,null,null,null,null,null,"Advanced MD"]
[null,null,null,null,null,null,null,null,null,null,null,null,null,"Allscripts"]
[null,null,null,null,null,null,null,null,null,null,null,null,null,"Amazing Charts"]
[null,null,null,null,null,null,null,null,null,null,null,null,null,"athenahealth"]
[null,null,null,null,null,null,null,null,null,null,null,null,null,"CareCloud"]
[null,null,null,null,null,null,null,null,null,null,null,null,null,"Care Tracker"]
[null,null,null,null,null,null,null,null,null,null,null,null,null,"Centricity"]
[null,null,null,null,null,null,null,null,null,null,null,null,null,"Cerner"]
[null,null,null,null,null,null,null,null,null,null,null,null,null,"CureMD"]
[null,null,null,null,null,null,null,null,null,null,null,null,null,"drchrono"]
[null,null,null,null,null,null,null,null,null,null,null,null,null,"eClinicalWorks"]
[null,null,null,null,null,null,null,null,null,null,null,null,null,"eMDs"]
[null,null,null,null,null,null,null,null,null,null,null,null,null,"Epic"]
[null,null,null,null,null,null,null,null,null,null,null,null,null,"Greenway"]
[null,null,null,null,null,null,null,null,null,null,null,null,null,"iMedicWare"]
[null,null,null,null,null,null,null,null,null,null,null,null,null,"Intelligent Medical Sofware"]
[null,null,null,null,null,null,null,null,null,null,null,null,null,"Kareo"]
[null,null,null,null,null,null,null,null,null,null,null,null,null,"Medical Mastermind"]
[null,null,null,null,null,null,null,null,null,null,null,null,null,"Medinformatix"]
[null,null,null,null,null,null,null,null,null,null,null,null,null,"Meditech"]
[null,null,null,null,null,null,null,null,null,null,null,null,null,"Meditouch"]
[null,null,null,null,null,null,null,null,null,null,null,null,null,"MicroMD"]
[null,null,null,null,null,null,null,null,null,null,null,null,null,"Modernizing Medicine"]
[null,null,null,null,null,null,null,null,null,null,null,null,null,"Nextech"]
[null,null,null,null,null,null,null,null,null,null,null,null,null,"NextGen"]
[null,null,null,null,null,null,null,null,null,null,null,null,null,"NueMD"]
[null,null,null,null,null,null,null,null,null,null,null,null,null,"Practice Fusion"]
[null,null,null,null,null,null,null,null,null,null,null,null,null,"Practice Perfect"]
[null,null,null,null,null,null,null,null,null,null,null,null,null,"Success EHS"]
[null,null,null,null,null,null,null,null,null,null,null,null,null,"Systemedx"]
[null,null,null,null,null,null,null,null,null,null,null,null,null,"WebeDoctor"]
[null,null,null,null,null,null,{"$f":"SUBTOTAL(3, $H$14:H204)","v":42},"m.Care",3.6,null,"✔","✔",null,"-","m.care/"]
[null,null,null,null,null,null,{"$f":"SUBTOTAL(3, $H$14:H209)","v":43},"Medici",4.4000000000000004,null,"✔","  ",null,"Allscripts","www.medici.md/"]
[null,null,null,null,null,null,null,null,null,null,null,null,null,"athenahealth"]
[null,null,null,null,null,null,null,null,null,null,null,null,null,"Carecloud"]
[null,null,null,null,null,null,null,null,null,null,null,null,null,"DrChrono"]
[null,null,null,null,null,null,null,null,null,null,null,null,null,"Kareo"]
[null,null,null,null,null,null,{"$f":"SUBTOTAL(3, $H$14:H210)","v":44},"Medpod","-",null,"  ","✔",null,"None","medpodhealth.com/"]
[null,null,null,null,null,null,{"$f":"SUBTOTAL(3, $H$14:H211)","v":45},"Medsign (Qortext)","-",null,"✔","✔",null,"None","www.medsign.com/"]
[null,null,null,null,null,null,{"$f":"SUBTOTAL(3, $H$14:H214)","v":46},"Medsolis","-",null,"  ","  ",null,"athenahealth","www.medsolis.com/#home"]
[null,null,null,null,null,null,null,null,null,null,null,null,null,"eClinicalWorks"]
[null,null,null,null,null,null,null,null,null,null,null,null,null,"Epic"]
[null,null,null,null,null,null,{"$f":"SUBTOTAL(3, $H$14:H233)","v":47},"Mend",4.3,null,"  ","  ",null,"Advanced MD","www.mend.com/"]
[null,null,null,null,null,null,null,null,null,null,null,null,null,"Allscripts"]
[null,null,null,null,null,null,null,null,null,null,null,null,null,"Aprima"]
[null,null,null,null,null,null,null,null,null,null,null,null,null,"athenahealth"]
[null,null,null,null,null,null,null,null,null,null,null,null,null,"Cerner"]
[null,null,null,null,null,null,null,null,null,null,null,null,null,"CPR+"]
[null,null,null,null,null,null,null,null,null,null,null,null,null,"Credible"]
[null,null,null,null,null,null,null,null,null,null,null,null,null,"eClinicalWorks"]
[null,null,null,null,null,null,null,null,null,null,null,null,null,"Epic"]
[null,null,null,null,null,null,null,null,null,null,null,null,null,"Echo"]
[null,null,null,null,null,null,null,null,null,null,null,null,null,"Greenway"]
[null,null,null,null,null,null,null,null,null,null,null,null,null,"Genius eThomas"]
[null,null,null,null,null,null,null,null,null,null,null,null,null,"iThrive"]
[null,null,null,null,null,null,null,null,null,null,null,null,null,"Lauris"]
[null,null,null,null,null,null,null,null,null,null,null,null,null,"Netsmart"]
[null,null,null,null,null,null,null,null,null,null,null,null,null,"NextGen"]
[null,null,null,null,null,null,null,null,null,null,null,null,null,"Nextech"]
[null,null,null,null,null,null,null,null,null,null,null,null,null,"Qualifacts"]
[null,null,null,null,null,null,null,null,null,null,null,null,null,"TREAT"]
[null,null,null,null,null,null,{"$f":"SUBTOTAL(3, $H$14:H234)","v":48},"Microsoft Teams",4.7,null,"  ","  ",null,"Epic","www.microsoft.com/en-us/microsoft-teams/healthcare-solutions"]
[null,null,null,null,null,null,{"$f":"SUBTOTAL(3, $H$14:H235)","v":49},"mTelehealth","-",null,"✔","✔",null,"None","mtelehealth.com/"]
[null,null,null,null,null,null,{"$f":"SUBTOTAL(3, $H$14:H236)","v":50},"Myowndoctor",5,null,"  ","  ",null,"None","myowndoctor.com/"]
[null,null,null,null,null,null,{"$f":"SUBTOTAL(3, $H$14:H250)","v":51},"MyTelemedicine/Zeal.ly",3.6,null,"  ","  ",null,"Allscripts","zeal.ly/"]
[null,null,null,null,null,null,null,null,null,null,null,null,null,"Amazing Charts"]
[null,null,null,null,null,null,null,null,null,null,null,null,null,"athenahealth"]
[null,null,null,null,null,null,null,null,null,null,null,null,null,"Cerner"]
[null,null,null,null,null,null,null,null,null,null,null,null,null,"eClinicalWorks"]
[null,null,null,null,null,null,null,null,null,null,null,null,null,"Eclipse"]
[null,null,null,null,null,null,null,null,null,null,null,null,null,"Epic"]
[null,null,null,null,null,null,null,null,null,null,null,null,null,"GE Healthcare"]
[null,null,null,null,null,null,null,null,null,null,null,null,null,"Kareo"]
[null,null,null,null,null,null,null,null,null,null,null,null,null,"McKesson"]
[null,null,null,null,null,null,null,null,null,null,null,null,null,"Meditech"]
[null,null,null,null,null,null,null,null,null,null,null,null,null,"Practice Fusion"]
[null,null,null,null,null,null,null,null,null,null,null,null,null,"NextGen"]
[null,null,null,null,null,null,null,null,null,null,null,null,null,"RxNT"]
[null,null,null,null,null,null,{"$f":"SUBTOTAL(3, $H$14:H252)","v":52},"NextGen",4,null,"  ","✔",null,"Greenway","www.nextgen.com/products-and-services/telehealth-virtual-visits"]
[null,null,null,null,null,null,null,null,null,null,null,null,null,"NextGen"]
[null,null,null,null,null,null,{"$f":"SUBTOTAL(3, $H$14:H257)","v":53},"OhMD",4.9000000000000004,null,null,null,null,"Allscripts","www.ohmd.com/practice/"]
[null,null,null,null,null,null,null,null,null,null,null,null,null,"athenahealth"]
[null,null,null,null,null,null,null,null,null,null,null,null,null,"Cerner"]
[null,null,null,null,null,null,null,null,null,null,null,null,null,"eClinicalWorks"]
[null,null,null,null,null,null,null,null,null,null,null,null,null,"Epic"]
[null,null,null,null,null,null,{"$f":"SUBTOTAL(3, $H$14:H260)","v":54},"OTTO Health",5,null,"  ","  ",null,"athenahealth","www.ottohealth.com/"]
[null,null,null,null,null,null,null,null,null,null,null,null,null,"Greenway"]
[null,"a",null,null,null,null,null,null,null,null,null,null,null,"NextGen"]
[null,null,null,null,null,null,{"$f":"SUBTOTAL(3, $H$14:H261)","v":55},"PatientClick Suite",3,null,"  ","  ",null,"PatientClick EHR","patientclick.com/solutions/telemedicine.aspx"]
[null,null,null,null,null,null,{"$f":"SUBTOTAL(3, $H$14:H262)","v":56},"Pexip",4.8,null,"  ","  ",null,"Epic","www.pexip.com/healthcare"]
[null,null,null,null,null,null,{"$f":"SUBTOTAL(3, $H$14:H263)","v":57},"Poly",4,null,null,"  ",null,"Epic","www.poly.com/us/en/solutions/industry/healthcare"]
[null,null,null,null,null,null,{"$f":"SUBTOTAL(3, $H$14:H264)","v":58},"Qure4u",4.8,null,"✔","✔",null,"athenahealth","www.qure4u.com/"]
[null,null,null,null,null,null,{"$f":"SUBTOTAL(3, $H$14:H265)","v":59},"Rhinogram",4.9000000000000004,null,null,null,null,"-","www.rhinogram.com/"]
[null,null,null,null,null,null,{"$f":"SUBTOTAL(3, $H$14:H266)","v":60},"SecureVideo",4.7,null,"  ","✔",null,"-","www.securevideo.com/"]
[null,null,null,null,null,null,{"$f":"SUBTOTAL(3, $H$14:H267)","v":61},"SnapMD",3.9,null,"✔","✔",null,"athenahealth","snap.md/"]
[null,null,null,null,null,null,{"$f":"SUBTOTAL(3, $H$14:H268)","v":62},"SNC Telehealth Solutions/SeeMD","-",null,"  ","✔",null,"None","www.snctelehealthsolutions.com/seemd/"]
[null,null,null,null,null,null,{"$f":"SUBTOTAL(3, $H$14:H270)","v":63},"Spruce",4.8,null,"✔","  ",null,"Elation","www.sprucehealth.com/"]
[null,null,null,null,null,null,null,null,null,null,null,null,null,"Hint"]
[null,null,null,null,null,null,{"$f":"SUBTOTAL(3, $H$14:H271)","v":64},"StarLeaf",4.0999999999999996,null,"  ","  ",null,"None","starleaf.com/"]
[null,null,null,null,null,null,{"$f":"SUBTOTAL(3, $H$14:H274)","v":65},"SwyMe/SwyMed",4,null,"  ","✔",null,"Allscripts","swymed.com/"]
[null,null,null,null,null,null,null,null,null,null,null,null,null,"athenahealth"]
[null,null,null,null,null,null,null,null,null,null,null,null,null,"Epic"]
[null,null,null,null,null,null,{"$f":"SUBTOTAL(3, $H$14:H276)","v":66},"Synzi",4,null,"✔","  ",null,"Homecare Homebase","synzi.com/"]
[null,null,null,null,null,null,null,null,null,null,null,null,null,"Wellsky"]
[null,null,null,null,null,null,{"$f":"SUBTOTAL(3, $H$14:H277)","v":67},"Tech4Life Enterprises/MDConsults Global","-",null,"✔","✔",null,"Oscar","tech4lifeenterprises.com/mdconsults/"]
[null,null,null,null,null,null,{"$f":"SUBTOTAL(3, $H$14:H281)","v":68},"TelemedIQ",4.7,null,null,"✔",null,"Allscripts","www.soctelemed.com/telemediq-telemedicine-platform/"]
[null,null,null,null,null,null,null,null,null,null,null,null,null,"Cerner"]
[null,null,null,null,null,null,null,null,null,null,null,null,null,"Epic"]
[null,null,null,null,null,null,null,null,null,null,null,null,null,"Meditech"]
[null,null,null,null,null,null,{"$f":"SUBTOTAL(3, $H$14:H282)","v":69},"TotalCare",5,null,null,null,null,"-","www.hawkeyemedtech.com/"]
[null,null,null,null,null,null,{"$f":"SUBTOTAL(3, $H$14:H286)","v":70},"Twilio",4.5,null,null,"✔",null,"Cerner","www.twilio.com/"]
[null,null,null,null,null,null,null,null,null,null,null,null,null,"eClinicalWorks"]
[null,null,null,null,null,null,null,null,null,null,null,null,null,"Epic"]
[null,null,null,null,null,null,null,null,null,null,null,null,null,"OpenEMR"]
[null,null,null,null,null,null,{"$f":"SUBTOTAL(3, $H$14:H287)","v":71},"TytoCare",4.5,null,"✔","✔",null,"Epic","www.tytocare.com/"]
[null,null,null,null,null,null,{"$f":"SUBTOTAL(3, $H$14:H295)","v":72},"Updox",4.4000000000000004,null,null,"  ",null,"Allscripts","www.updox.com/"]
[null,null,null,null,null,null,null,null,null,null,null,null,null,"Amazing Charts"]
[null,null,null,null,null,null,null,null,null,null,null,null,null,"Dr Chrono"]
[null,null,null,null,null,null,null,null,null,null,null,null,null,"eMD"]
[null,null,null,null,null,null,null,null,null,null,null,null,null,"Greenway"]
[null,null,null,null,null,null,null,null,null,null,null,null,null,"Mac Practice"]
[null,null,null,null,null,null,null,null,null,null,null,null,null,"PointClickCare"]
[null,null,null,null,null,null,null,null,null,null,null,null,null,"Practice Fusion"]
[null,null,null,null,null,null,{"$f":"SUBTOTAL(3, $H$14:H296)","v":73},"Vsee Clinic",4.0999999999999996,null,"✔","✔",null,"None","vsee.com/"]
[null,null,null,null,null,null,{"$f":"SUBTOTAL(3, $H$14:H298)","v":74},"Vidyo",3.1,null,null,"✔",null,"Cerner","www.vidyo.com/"]
[null,null,null,null,null,null,null,null,null,null,null,null,null,"Epic"]
[null,null,null,null,null,null,{"$f":"SUBTOTAL(3, $H$14:H309)","v":75},"Vivify Health",4.3,null,"✔","✔",null,"Aprima","www.vivifyhealth.com/"]
[null,null,null,null,null,null,null,null,null,null,null,null,null,"Allscripts"]
[null,null,null,null,null,null,null,null,null,null,null,null,null,"athenahealth"]
[null,null,null,null,null,null,null,null,null,null,null,null,null,"Cerner"]
[null,null,null,null,null,null,null,null,null,null,null,null,null,"eClinicalWorks"]
[null,null,null,null,null,null,null,null,null,null,null,null,null,"eMDs"]
[null,null,null,null,null,null,null,null,null,null,null,null,null,"Epic"]
[null,null,null,null,null,null,null,null,null,null,null,null,null,"GE Healthcare"]
[null,null,null,null,null,null,null,null,null,null,null,null,null,"Greenway"]
[null,null,null,null,null,null,null,null,null,null,null,null,null,"MEDITECH"]
[null,null,null,null,null,null,null,null,null,null,null,null,null,"NextGen"]
[null,null,null,null,null,null,{"$f":"SUBTOTAL(3, $H$14:H313)","v":76},"Vonage",4.5,null,"  ","✔",null,"eClinicalWorks","www.vonage.com/communications-apis/healthcare/"]
[null,null,null,null,null,null,null,null,null,null,null,null,null,"MEDITECH"]
[null,null,null,null,null,null,null,null,null,null,null,null,null,"NextGen"]
[null,null,null,null,null,null,null,null,null,null,null,null,null,"Simple Practice"]
[null,null,null,null,null,null,{"$f":"SUBTOTAL(3, $H$14:H314)","v":77},"Zoom for Healthcare",4.5999999999999996,null,"  ","  ",null,"Epic","zoom.us/healthcare"]

{"sheet":"Resources and References","index":1,"n_rows":56,"n_cols":3,"rows_kept":56,"cut":false,"hidden":false,"merged":[[12,2,12,17],[5,2,5,17],[7,2,7,17],[8,2,8,17],[9,2,9,17],[10,2,10,17],[18,2,18,17],[20,2,20,17],[23,2,23,17],[24,2,24,17],[25,2,25,17],[13,2,13,17],[14,2,14,17],[15,2,15,17],[16,2,16,17],[17,2,17,17],[34,2,34,17],[27,2,27,17],[21,2,21,17],[22,2,22,17],[29,2,29,17],[30,2,30,17],[31,2,31,17],[32,2,32,17],[33,2,33,17],[26,2,26,17],[28,2,28,17],[46,2,46,17],[35,2,35,17],[36,2,36,17],[37,2,37,17],[38,2,38,17],[39,2,39,17],[40,2,40,17],[41,2,41,17],[42,2,42,17],[43,2,43,17],[44,2,44,17],[45,2,45,17],[51,2,51,17],[52,2,52,17],[54,2,54,17],[55,2,55,17],[47,2,47,17],[48,2,48,17],[49,2,49,17],[50,2,50,17],[53,2,53,17]]}
[]
[]
[]
[]
[]
[]
[]
[null,null,"Contact"]
[null,null,"For questions, please contact Justine Springer, MHCC Program Manager at:"]
[null,null,"justine.springer@maryland.gov"]
[null,null,"If you are a telehealth vendor and would like your product to be added to this portfolio, please email your request to Justine Springer."]
[]
[null,null,"Additional Resources"]
[null,null,"MHCC Telehealth Virtual Resource Center"]
[null,null,"A dedicated web page with resources to assist practices with telehealth implementation during the COVID-19 public health crisis and beyond.  "]
[null,null,"HIPAA and Telehealth"]
[null,null,"Guidance from the Telehealth Resource Centers for compliance with federal and state regulations."]
[null,null,"National Consortium of Telehealth Resource Centers"]
[null,null,"Provides assistance, education, and information for using telehealth in care delivery."]
[]
[null,null,"References"]
[null,null,"1 OCR is responsible for enforcing the HIPAA Privacy and Security Rules.  More information is available at:   "]
[null,null,"hhs.gov/hipaa/for-professionals/compliance-enforcement/index.html"]
[null,null,"2 Pub.L. 104–191, 110 Stat. 1936 (1996)"]
[null,null,"3  OCR, Notification of Enforcement Discretion for Telehealth Remote Communications During the COVID-19 Nationwide Public Health Emergency.  Available at:    "]
[null,null,"hhs.gov/hipaa/for-professionals/special-topics/emergency-preparedness/notification-enforcement-discretion-telehealth/index.html"]
[null,null,"4 Public facing applications (e.g., Tik Tok, Twitch, Instagram, Facebook Live, etc.) are not permitted under the OCR notification.  Providers are encouraged to notify patients that these third-party applications potentially introduce privacy risks, and providers should enable all available encryption and privacy modes when using such applications.  "]
[null,null,"5 See n.2, Supra."]
[null,null,"6 More information on and examples of usability assessments is available at:  www.usability.gov/what-and-why/usability-evaluation.html "]
[null,null,"7 US Department of Health and Human Services (HHS).  Summary of the HIPAA Security Rule. Available at:  "]
[null,null,"hhs.gov/hipaa/for-professionals/security/laws-regulations/index.html"]
[null,null,"8 See n. 2, Supra."]
[null,null,"9 HHS.  Guidance on Risk Analysis.  Available at:  "]
[null,null,"hhs.gov/hipaa/for-professionals/security/guidance/guidance-risk-analysis/index.html "]
[null,null,"10  Penalties for non-HIPAA compliant telehealth platforms currently only apply to telehealth sessions covered by Medicare and other federal health care programs overseen by the  "]
[null,null,"Centers for Medicare and Medicaid Services."]
[null,null,"11 HHS.  HIPAA Enforcement. Available at: "]
[null,null,"hhs.gov/hipaa/for-professionals/compliance-enforcement/index.html"]
[null,null,"12 HHS.  Business Associates.  Available at:  "]
[null,null,"hhs.gov/hipaa/for-professionals/privacy/guidance/business-associates/index.html"]
[null,null,"13 HHS.  Summary of the HIPAA Privacy Rule. Available at:"]
[null,null,"hhs.gov/hipaa/for-professionals/privacy/laws-regulations/index.html"]
[null,null,"14 Center for Connected Health Policy.  About Telehealth, Store-and-Forward (asynchronous). Available at:  "]
[null,null,"cchpca.org/about/about-telehealth/store-and-forward-asynchronous"]
[null,null,"15 Ibid."]
[null,null,"16 Healthcare.digital.  Two Forms of Telemedicine: Synchronous vs. Asynchronous.  Available at:  "]
[null,null,"healthcare.digital/single-post/2020/01/17/Two-Forms-of-Telemedicine-Synchronous-vs-Asynchronous"]
[null,null,"17 National Organizations of State Offices of Rural Health.  Telehealth Technologies and Preparing to Select a Vendor.  Available at:  "]
[null,null,"nosorh.org/wp-content/uploads/2016/11/NOSORH-Telehealth-Vendor-Fact-Sheet-FINAL.pdf"]
[null,null,"18 Becker's Hospital Review.  4 key elements to a great telemedicine system. Available at:  "]
[null,null,"beckershospitalreview.com/healthcare-information-technology/4-key-elements-to-a-great-telemedicine-system.html"]
[null,null,"19 Information on using peripherals is available at:  "]
[null,null,"mhcc.maryland.gov/mhcc/pages/hit/hit/documents/HIT_Peripherals_in_Practice_Flyer.pdf"]
[null,null,"20 Integration is done through an application programming interface (API), which are operations and descriptions that allow two programs to interact virtually (i.e., allow the telehealth program to be seamlessly integrated in the EHR).  "]
[null,null,"A Notice to Users"]
[null,null,"The MHCC appreciates stakeholders that provided input into the development of this portfolio.  The portfolio is intended to build telehealth vendor awareness and help guide practices in selecting a telehealth vendor.  The MHCC does not endorse or recommend specific technology vendors. "]